[Event "Slovakian-ch Youth 2022"]
[Site "Lubovna"]
[Date "2022.05.24"]
[Round "5.13"]
[White "Kostelansky, Karol"]
[Black "Svorad Tomas"]
[Result "1-0"]
[ECO "B34"]
[WhiteElo "1821"]
[BlackElo "1405"]
[Annotator "NA RC COMBH"]
[PlyCount "67"]
[EventDate "2022.05.22"]
[EventCountry "SVK"]
[SourceTitle "playchess.com"]
[Source "ChessBase"]
[SourceQuality "1"]
[TimeControl "40/5400+30:1800+30"]

1. e4 {[%emt 0:00:19]} c5 {[%emt 0:00:10]} 2. Nc3 {[%emt 0:00:50]} Nc6 {[%emt 0:00:09]} 3. Nge2 {[%emt 0:01:27]} g6 {[%emt 0:01:32]} 4. d4 {[%emt 0:00:52]} cxd4 {[%emt 0:00:26]} 5. Nxd4 {[%emt 0:00:08]} Bg7 {[%emt 0:00:09]} 6. Nde2 {[%emt 0:01:16]} Nf6 {[%emt 0:02:19]} 7. g3 {[%emt 0:00:46]} b5 {[%emt 0:02:09]} 8. Bg2 {[%emt 0:02:33]} Rb8 {[%emt 0:00:16] 8...b4 is more advanced technology.} 9. O-O {[%emt 0:04:29]} O-O {[%emt 0:00:13]} 10. Rb1 {[%emt 0:07:41]} d6 {[%emt 0:03:19]} 11. Nd5 {[%emt 0:04:40]} Nd7 {[%emt 0:04:31] [#]} 12. Be3 $146 {[%emt 0:08:52]} ({Predecessor:} 12. h3 b4 13. Be3 a5 14. Re1 Ba6 15. Qd2 Re8 16. Kh2 Rc8 17. Red1 Nce5 18. b3 {0-1 (41) Hansen,T (2323)-Roiz,M (2599) Cappelle la Grande 2006}) 12... a5 {[%emt 0:01:35]} 13. Nd4 {[%emt 0:04:38]} Nxd4 {[%emt 0:03:22]} 14. Bxd4 {[%emt 0:00:10]} b4 {[%emt 0:11:59]} 15. Bxg7 {[%emt 0:14:18]} Kxg7 {[%emt 0:00:20]} 16. f4 {[%emt 0:03:04]} Nb6 {[%emt 0:05:58]} 17. Qd4+ {[%emt 0:04:32]} Kg8 {[%emt 0:04:26]} 18. Rbe1 {[%emt 0:04:51]} Re8 {[%emt 0:04:39]} 19. Kh1 {[%emt 0:12:13]} Nxd5 {[%emt 0:06:18]} 20. exd5 {[%emt 0:02:21]} Qc7 {[%emt 0:01:31]} 21. Rf2 {[%emt 0:03:10]} Bf5 {[%emt 0:05:06]} 22. Be4 {[%emt 0:03:14]} Qc5 {[%emt 0:04:18]} 23. Qxc5 {[%emt 0:05:42]} Bxe4+ {[%emt 0:00:13]} 24. Rxe4 {[%emt 0:00:11]} dxc5 {[%emt 0:00:06]} 25. c4 {[%emt 0:02:07]} bxc3 {[%emt 0:00:47]} 26. bxc3 {[%emt 0:00:10]} Rb1+ {[%emt 0:00:18]} 27. Kg2 {[%emt 0:00:21]} Rc1 {[%emt 0:00:14]} 28. d6 {[%emt 0:07:13]} f5 $18 {[%emt 0:12:45]} (28... Rxc3 $11 29. d7 (29. dxe7 f5 $11) (29. Rxe7 Rxe7 30. dxe7 Re3 $11) 29... Rd8) 29. d7 {[%emt 0:00:32]} Rd8 {[%emt 0:00:11]} 30. Rxe7 {[%emt 0:00:24]} Kf8 {[%emt 0:00:35]} 31. Rfe2 {[%emt 0:00:24]} Rc2 {[%emt 0:02:42]} 32. Re8+ {[%emt 0:00:34]} Kf7 {[%emt 0:00:12]} 33. Rxc2 {[%emt 0:00:16]} Rxd7 {[%emt 0:00:10]} 34. Ra8 {[%emt 0:00:18]} 1-0

[Event "Slovakian-ch Youth 2022"]
[Site "Lubovna"]
[Date "2022.05.24"]
[Round "5.14"]
[White "Kostura, Daniel"]
[Black "Marcin, Richard"]
[Result "1-0"]
[ECO "B01"]
[WhiteElo "1510"]
[BlackElo "1325"]
[Annotator "NA RC COMBH"]
[PlyCount "69"]
[EventDate "2022.05.22"]
[EventCountry "SVK"]
[SourceTitle "playchess.com"]
[Source "ChessBase"]
[SourceQuality "1"]
[TimeControl "40/5400+30:1800+30"]

1. e4 {[%emt 0:00:17]} d5 {[%emt 0:00:25]} 2. exd5 {[%emt 0:00:09]} Nf6 {[%emt 0:00:12]} 3. d4 {[%emt 0:00:18]} Nxd5 {[%emt 0:00:26]} 4. c4 {[%emt 0:00:36]} Nf6 {[%emt 0:00:55]} 5. Nc3 {[%emt 0:00:42]} e6 {[%emt 0:01:01]} 6. Nf3 {[%emt 0:01:03]} Bb4 {[%emt 0:03:18]} 7. Bg5 {[%emt 0:01:41]} Nbd7 {[%emt 0:01:55]} 8. Bd3 {[%emt 0:01:53]} h6 {[%emt 0:02:08]} 9. Bh4 {[%emt 0:00:35]} c5 {[%emt 0:07:31]} 10. O-O {[%emt 0:04:29]} Bxc3 {[%emt 0:01:30]} 11. bxc3 {[%emt 0:00:15]} Qa5 {[%emt 0:00:30]} 12. Qc2 {[%emt 0:07:36]} b6 {[%emt 0:11:05]} 13. d5 {[%emt 0:07:50]} O-O {[%emt 0:14:43]} 14. Rfe1 {[%emt 0:11:43]} exd5 {[%emt 0:04:06]} 15. cxd5 {[%emt 0:00:28]} Nxd5 {[%emt 0:00:33]} 16. Be4 {[%emt 0:00:47]} Bb7 {[%emt 0:02:14]} 17. Rad1 {[%emt 0:02:11]} c4 {[%emt 0:01:49]} 18. Qd2 {[%emt 0:05:31]} f5 {[%emt 0:06:10]} 19. Bxd5+ {[%emt 0:02:59]} Bxd5 {[%emt 0:00:00]} 20. Qxd5+ {[%emt 0:00:18]} Qxd5 {[%emt 0:00:01]} 21. Rxd5 {[%emt 0:00:12]} Nc5 {[%emt 0:00:46]} 22. Be7 {[%emt 0:07:02]} Ne4 {[%emt 0:04:29]} 23. Bxf8 {[%emt 0:02:59]} Nxc3 {[%emt 0:00:08]} 24. Rxf5 {[%emt 0:03:09]} Nxa2 {[%emt 0:00:23]} 25. Re2 {[%emt 0:03:09]} Rd8 {[%emt 0:01:14]} 26. g3 {[%emt 0:02:15]} Nc3 {[%emt 0:05:59]} 27. Rc2 {[%emt 0:01:56]} Rd1+ {[%emt 0:00:58]} 28. Kg2 {[%emt 0:01:16]} Na2 {[%emt 0:03:51]} 29. Rxc4 {[%emt 0:02:46]} Rb1 {[%emt 0:00:19]} 30. Ra4 {[%emt 0:02:02]} a5 {[%emt 0:02:19]} 31. Rxa2 {[%emt 0:01:11]} Rc1 {[%emt 0:01:43]} 32. Rb5 {[%emt 0:01:00]} Rc6 {[%emt 0:00:21]} 33. Rab2 {[%emt 0:00:53]} Kxf8 {[%emt 0:02:29]} 34. Rxb6 {[%emt 0:00:02]} Rc4 {[%emt 0:00:31]} 35. Ra6 {[%emt 0:00:13]} 1-0

[Event "Slovakian-ch Youth 2022"]
[Site "Lubovna"]
[Date "2022.05.24"]
[Round "5.14"]
[White "Kluska, Lukas"]
[Black "Valchev, Martin V"]
[Result "1-0"]
[ECO "A28"]
[WhiteElo "1215"]
[BlackElo "1193"]
[Annotator "NA RC COMBH"]
[PlyCount "125"]
[EventDate "2022.05.22"]
[EventCountry "SVK"]
[SourceTitle "playchess.com"]
[Source "ChessBase"]
[SourceQuality "1"]
[TimeControl "40/5400+30:1800+30"]

1. c4 {[%emt 0:00:34]} e5 {[%emt 0:00:46]} 2. Nc3 {[%emt 0:01:02]} Nc6 {[%emt 0:00:25]} 3. Nf3 {[%emt 0:01:24]} Nf6 {[%emt 0:00:14]} 4. e3 {[%emt 0:00:52]} Bb4 {[%emt 0:01:16]} 5. a3 {[%emt 0:01:28]} Bxc3 {[%emt 0:00:10]} 6. bxc3 {[%emt 0:00:13]} d6 {[%emt 0:01:02]} 7. Be2 {[%emt 0:00:28]} Be6 {[%emt 0:01:04]} 8. d4 {[%emt 0:00:30]} O-O {[%emt 0:01:53]} 9. d5 {[%emt 0:00:37]} e4 {[%emt 0:06:52]} 10. Nd2 {[%emt 0:01:48]} Nxd5 {[%emt 0:02:55]} 11. cxd5 {[%emt 0:00:18]} Bxd5 {[%emt 0:00:10]} 12. c4 {[%emt 0:00:38]} Be6 {[%emt 0:00:40]} 13. Nxe4 {[%emt 0:03:55]} d5 {[%emt 0:01:11]} 14. cxd5 {[%emt 0:01:11]} Bxd5 {[%emt 0:00:10]} 15. Bf3 {[%emt 0:00:47]} Re8 {[%emt 0:01:42]} 16. Ng3 {[%emt 0:01:45]} Qf6 {[%emt 0:02:20]} 17. Rb1 {[%emt 0:00:49]} Bxf3 {[%emt 0:01:08]} 18. Qxf3 {[%emt 0:00:12]} Rad8 {[%emt 0:02:25]} 19. Qxf6 {[%emt 0:01:10]} gxf6 {[%emt 0:00:14]} 20. Rxb7 {[%emt 0:01:26]} Nd4 {[%emt 0:04:16]} 21. O-O Nc6 {[%emt 0:05:40]} 22. Nh5 {[%emt 0:03:04]} Re6 {[%emt 0:00:40]} 23. Nf4 {[%emt 0:00:36]} Re7 {[%emt 0:00:25]} 24. Bb2 {[%emt 0:00:29]} Kg7 {[%emt 0:01:02]} 25. h3 {[%emt 0:02:07]} a5 {[%emt 0:02:33]} 26. Rc1 {[%emt 0:03:26]} Rd6 {[%emt 0:01:56]} 27. Ne2 {[%emt 0:02:44]} Nd8 {[%emt 0:01:48]} 28. Rbxc7 {[%emt 0:01:24]} Rxc7 {[%emt 0:00:21]} 29. Rxc7 {[%emt 0:00:09]} Rd2 {[%emt 0:00:05]} 30. Bxf6+ {[%emt 0:01:06]} Kxf6 {[%emt 0:00:17]} 31. Ng3 {[%emt 0:00:13]} Rd1+ {[%emt 0:00:33]} 32. Kh2 {[%emt 0:00:17]} Ne6 {[%emt 0:00:35]} 33. Ra7 {[%emt 0:00:31]} Rd5 {[%emt 0:01:11]} 34. Ne4+ {[%emt 0:03:29]} Kf5 {[%emt 0:00:48]} 35. f3 {[%emt 0:00:22]} Kg6 {[%emt 0:01:45]} 36. Ra8 {[%emt 0:01:55]} f5 {[%emt 0:00:40]} 37. Rg8+ {[%emt 0:01:01]} Ng7 {[%emt 0:00:33]} 38. Ng3 {[%emt 0:01:17]} Rd3 {[%emt 0:00:15]} 39. e4 {[%emt 0:00:27]} fxe4 {[%emt 0:01:18]} 40. Nxe4 {[%emt 0:00:23]} Kf7 {[%emt 0:00:16]} 41. Ra8 {[%emt 0:30:44]} Rxa3 {[%emt 0:30:12]} 42. Ra7+ {[%emt 0:03:53]} Kg6 {[%emt 0:00:32]} 43. Kg3 {[%emt 0:00:56]} h5 {[%emt 0:01:08]} 44. Ra6+ {[%emt 0:00:13]} Kf7 {[%emt 0:00:44]} 45. Kf4 {[%emt 0:01:15]} Ra2 {[%emt 0:03:45]} 46. g4 {[%emt 0:00:30]} hxg4 {[%emt 0:01:35]} 47. hxg4 {[%emt 0:00:09]} Ra4 {[%emt 0:00:15]} 48. Ke5 {[%emt 0:01:01]} Ne8 {[%emt 0:00:46]} 49. f4 {[%emt 0:01:11]} Ra1 {[%emt 0:00:43]} 50. g5 {[%emt 0:04:12]} a4 {[%emt 0:00:23]} 51. f5 {[%emt 0:00:44]} a3 {[%emt 0:00:24]} 52. Ra7+ {[%emt 0:00:12]} Kg8 {[%emt 0:00:16]} 53. f6 {[%emt 0:00:33]} Kf8 {[%emt 0:01:05]} 54. f7 {[%emt 0:03:28]} Ng7 {[%emt 0:01:00]} 55. g6 {[%emt 0:00:47]} Rf1 {[%emt 0:01:29]} 56. Ra8+ {[%emt 0:00:42]} Ke7 {[%emt 0:00:09]} 57. Ra7+ {[%emt 0:01:38]} Kf8 {[%emt 0:00:17]} 58. Nf6 {[%emt 0:00:31]} Re1+ {[%emt 0:01:03]} 59. Kd4 {[%emt 0:01:51]} Nf5+ {[%emt 0:01:30]} 60. Kd5 {[%emt 0:00:21]} Ne7+ {[%emt 0:01:33]} 61. Kd6 {[%emt 0:01:04]} Nxg6 {[%emt 0:00:12]} 62. Nh7+ {[%emt 0:00:32]} Kg7 {[%emt 0:00:26]} 63. f8=Q# {[%emt 0:00:22]} 1-0

[Event "Slovakian-ch Youth 2022"]
[Site "Lubovna"]
[Date "2022.05.24"]
[Round "5.15"]
[White "Skreko, Igor"]
[Black "Compel, Daniel"]
[Result "1/2-1/2"]
[ECO "E36"]
[WhiteElo "2065"]
[BlackElo "2106"]
[Annotator "TA"]
[PlyCount "160"]
[EventDate "2022.05.22"]
[EventCountry "SVK"]
[SourceTitle "playchess.com"]
[Source "ChessBase"]
[SourceQuality "1"]
[TimeControl "40/5400+30:1800+30"]

{[%evp 11,160,6,6,-41,-11,-4,-9,-68,-53,-66,-43,-46,-58,-52,-21,-28,0,0,3,12,11,12,18,18,25,13,55,16,18,12,16,13,28,24,31,4,16,12,15,16,16,14,25,5,5,5,5,5,13,0,0,0,0,-6,-1,-57,-47,-47,-47,-62,-48,-49,-54,-81,-81,-88,-73,-73,-71,-83,-71,-75,-47,-67,-67,-47,-47,-67,-67,-67,-67,-67,-67,-67,-67,-67,-67,-67,-67,-67,-67,-67,-67,-67,-67,-67,-67,-67,-67,-67,-67,-67,-67,-67,-67,-67,-67,-67,-67,-67,-67,-67,-67,-67,-67,-67,-67,-67,-67,-67,-67,-67,0,0,0,0,0,0,0,0,0,0,0,-7,0,0,0,0,0,0,0,0,0,0,0,0,0,0,0,0,0]} 1. d4 {[%emt 0:00:08]} Nf6 {[%emt 0:00:11]} 2. c4 {[%emt 0:00:07]} e6 {[%emt 0:00:03]} 3. Nc3 {[%emt 0:00:08]} Bb4 {[%emt 0:00:03]} 4. Qc2 {[%emt 0:00:20]} O-O {[%emt 0:00:05]} 5. a3 {[%emt 0:00:06]} Bxc3+ {[%emt 0:00:04]} 6. Qxc3 {[%emt 0:00:09]} d5 $1 {[%emt 0:00:03][%mdl 4] now scores much better than the old 6...b6.} 7. g3 {[%emt 0:01:26] E36: Nimzo-Indian: Classical: 4...d5 5 a3.} (7. Nf3 $11) 7... b6 {[%emt 0:00:39]} (7... c5 $5) 8. Bg2 {[%emt 0:00:57]} Bb7 {[%emt 0:00:03]} 9. e3 {[%emt 0:01:33]} (9. Bg5 $11) 9... Nbd7 {[%emt 0:00:19] [#]} 10. Ne2 $146 {[%emt 0:00:37]} (10. b4 Rb8 11. Ne2 Qe7 12. a4 Rfc8 13. a5 dxc4 14. Bxb7 Rxb7 15. a6 Rbb8 16. Qxc4) ({Predecessor:} 10. b4 Rb8 11. Ne2 Qe7 12. a4 Rfc8 13. a5 dxc4 14. Bxb7 Rxb7 15. a6 Rbb8 16. Qxc4 {1-0 (32) Citra,A-Cojoaca,V Amara 2007}) 10... Rc8 {[%emt 0:02:18]} 11. O-O {[%emt 0:04:32]} c5 {[%emt 0:00:10]} 12. cxd5 {[%emt 0:02:30]} Nxd5 {[%emt 0:00:41]} 13. Qd2 {[%emt 0:08:18]} cxd4 {[%emt 0:03:05]} (13... Qc7 $5 {[%cal Rf8d8]}) 14. Nxd4 {[%emt 0:01:03]} Nc5 {[%emt 0:01:06]} 15. b4 {[%emt 0:02:28]} Na4 {[%emt 0:01:45]} 16. Bb2 {[%emt 0:03:57]} Nxb2 {[%emt 0:00:12]} 17. Qxb2 {[%emt 0:01:52]} Qe7 {[%emt 0:03:32]} 18. Rac1 {[%emt 0:01:52]} Nf6 {[%emt 0:02:24]} 19. Nc6 {[%emt 0:04:16]} Bxc6 {[%emt 0:01:35]} 20. Bxc6 {[%emt 0:03:11]} Rc7 {[%emt 0:00:52]} 21. Rfd1 {[%emt 0:04:22]} Rfc8 {[%emt 0:03:11]} 22. b5 {[%emt 0:01:39]} Nd7 {[%emt 0:00:17]} 23. h4 {[%emt 0:10:37]} Nc5 {[%emt 0:00:15]} 24. Rc4 {[%emt 0:01:39]} Rd8 {[%emt 0:20:44]} 25. Rxd8+ {[%emt 0:04:27]} Qxd8 {[%emt 0:00:05]} 26. Rd4 {[%emt 0:00:47][%cal Rd4d8] [#]} Qf6 {[%emt 0:01:33]} 27. Qd2 {[%emt 0:01:55] Threatening mate with Rd8+.} Rc8 {[%emt 0:00:11] Prevents Rd8+. Strongly threatening ...Nb3.} 28. Qd1 {[%emt 0:00:32] Against Nb3} h6 {[%emt 0:00:37]} 29. Kg2 {[%emt 0:02:53]} Kh7 {[%emt 0:10:37]} 30. Qf3 {[%emt 0:17:12]} Qxf3+ {[%emt 0:00:39]} 31. Kxf3 $11 {[%emt 0:00:35][%mdl 4096] Endgame KRB-KRN} Kg8 {[%emt 0:01:01]} 32. a4 {[%emt 0:04:55]} Kf8 {[%emt 0:01:23]} 33. a5 {[%emt 0:02:40]} ({White should play} 33. Be4 $11) 33... Nb3 {[%emt 0:02:43]} 34. Rd7 {[%emt 0:00:27] [#] Black must now prevent a6.} Nxa5 {[%emt 0:00:04]} 35. Be4 {[%emt 0:00:50]} Rc5 {[%emt 0:02:00]} 36. Bd3 {[%emt 0:02:47]} Nc4 {[%emt 0:01:33]} 37. Rxa7 {[%emt 0:06:10]} Ne5+ {[%emt 0:00:22]} 38. Ke2 {[%emt 0:00:06]} Nxd3 {[%emt 0:00:16]} 39. Kxd3 {[%emt 0:00:05]} Rxb5 $17 {[%emt 0:00:10] KR-KR} 40. Rb7 {[%emt 0:02:04]} Rb2 {[%emt 0:00:51]} 41. f3 {[%emt 0:30:22]} Rg2 {[%emt 0:33:05]} 42. g4 {[%emt 0:00:25]} g6 {[%emt 0:03:11]} 43. Rxb6 {[%emt 0:01:19]} Rh2 {[%emt 0:00:09]} (43... Rf2) 44. Ke4 {[%emt 0:02:45]} Rxh4 {[%emt 0:00:13]} 45. Kf4 {[%emt 0:00:14]} Rh3 {[%emt 0:00:16]} 46. e4 {[%emt 0:00:49]} Kg7 {[%emt 0:01:05]} 47. Ke3 {[%emt 0:00:25]} Rh2 {[%emt 0:00:41]} 48. Kf4 {[%emt 0:00:28]} Ra2 {[%emt 0:00:46]} 49. Rb5 {[%emt 0:00:30]} Ra8 {[%emt 0:00:20]} 50. Kg3 {[%emt 0:00:19]} Kf6 {[%emt 0:00:35]} 51. Rc5 {[%emt 0:00:53]} Rh8 {[%emt 0:00:20]} 52. Kh4 {[%emt 0:00:30]} Kg7 {[%emt 0:01:47]} 53. Ra5 {[%emt 0:00:11]} Re8 {[%emt 0:00:14]} 54. Kg3 {[%emt 0:00:31]} Rf8 {[%emt 0:04:54]} 55. Ra7 {[%emt 0:00:55]} Kg8 {[%emt 0:01:46]} 56. Ra6 {[%emt 0:01:04]} Rc8 {[%emt 0:01:55]} 57. Kf4 {[%emt 0:00:37]} Rc7 {[%emt 0:00:07]} 58. Rb6 {[%emt 0:00:30]} Kg7 {[%emt 0:00:22]} 59. Ra6 {[%emt 0:00:15]} Kf6 {[%emt 0:02:14]} 60. Ra5 {[%emt 0:00:44]} Re7 {[%emt 0:02:52]} 61. Kg3 {[%emt 0:00:21]} e5 {[%emt 0:01:06]} 62. Kh4 {[%emt 0:00:00]} Re6 {[%emt 0:00:00]} 63. Ra7 {[%emt 0:00:00]} Rb6 {[%emt 0:00:00]} 64. Ra8 {[%emt 0:00:00]} Rb3 {[%emt 0:00:00]} 65. Ra6+ {[%emt 0:00:00]} Kg7 {[%emt 0:00:00]} 66. Kg3 {[%emt 0:00:00]} h5 {[%emt 0:00:00]} (66... Rd3 $15) 67. gxh5 $11 {[%emt 0:00:00] The position is equal.} gxh5 {[%emt 0:00:00]} 68. Ra5 {[%emt 0:00:00]} Kf6 {[%emt 0:00:00]} 69. Ra8 {[%emt 0:00:00]} Kg7 {[%emt 0:00:00]} 70. Ra5 {[%emt 0:00:00]} f6 {[%emt 0:00:00]} 71. Ra7+ {[%emt 0:00:00]} Kg6 {[%emt 0:00:00]} 72. Ra8 {[%emt 0:00:00]} Rb7 {[%emt 0:00:00]} 73. Kh4 {[%emt 0:00:00]} Rh7 {[%emt 0:00:00]} 74. Rg8+ {[%emt 0:00:00]} Kf7 {[%emt 0:00:00]} 75. Ra8 $1 {[%emt 0:00:00]} Rh6 {[%emt 0:00:00]} 76. Ra7+ {[%emt 0:00:00]} Ke6 {[%emt 0:00:00]} 77. Ra6+ {[%emt 0:00:00]} Kd7 {[%emt 0:00:00]} 78. Rb6 {[%emt 0:00:00]} Kc7 {[%emt 0:00:00]} 79. Ra6 {[%emt 0:00:00]} Kb7 {[%emt 0:00:00]} 80. Rd6 {[%emt 0:00:00]} Kc7 {[%emt 0:00:00] Weighted Error Value: White=0.09 (flawless) /Black=0.06 (flawless)} 1/2-1/2

[Event "Slovakian-ch Youth 2022"]
[Site "Lubovna"]
[Date "2022.05.24"]
[Round "5.15"]
[White "Kurimsky, Kristian"]
[Black "Rybovic, Alex"]
[Result "0-1"]
[ECO "D00"]
[WhiteElo "1006"]
[BlackElo "1000"]
[Annotator "NA COMBH"]
[PlyCount "67"]
[EventDate "2022.05.22"]
[EventCountry "SVK"]
[SourceTitle "playchess.com"]
[Source "ChessBase"]
[SourceQuality "1"]
[TimeControl "40/5400+30:1800+30"]

1. d4 {[%emt 0:00:02]} d5 {[%emt 0:00:01]} 2. Bf4 {[%emt 0:00:11]} Nc6 {[%emt 0:00:32]} 3. Nf3 {[%emt 0:00:18]} Bf5 {[%emt 0:00:38]} 4. e3 {[%emt 0:00:22]} e6 {[%emt 0:01:24]} 5. Bd3 {[%emt 0:00:21]} Bb4+ {[%emt 0:01:05]} 6. c3 {[%emt 0:00:54]} Bxd3 {[%emt 0:00:48]} 7. Qxd3 {[%emt 0:00:32]} Bd6 {[%emt 0:00:32]} 8. Bg3 {[%emt 0:02:21]} Nf6 {[%emt 0:00:38]} 9. Nbd2 {[%emt 0:02:26]} O-O {[%emt 0:00:27]} 10. h4 {[%emt 0:03:31]} Bxg3 {[%emt 0:02:40]} 11. fxg3 {[%emt 0:00:18]} Qe8 {[%emt 0:00:46]} 12. O-O-O {[%emt 0:00:16]} e5 {[%emt 0:01:11]} 13. Rde1 {[%emt 0:00:27]} e4 {[%emt 0:01:14]} 14. Qe2 {[%emt 0:01:00]} exf3 {[%emt 0:00:17]} 15. Qxf3 {[%emt 0:00:02]} Ne4 {[%emt 0:01:01]} 16. h5 {[%emt 0:00:45]} h6 {[%emt 0:00:14]} 17. Rh4 {[%emt 0:01:50]} Nxc3 {[%emt 0:00:27]} 18. bxc3 {[%emt 0:00:35]} Qe7 {[%emt 0:01:51]} 19. Kd1 {[%emt 0:00:39]} Qd7 {[%emt 0:03:06]} 20. Rf1 {[%emt 0:06:32]} g5 {[%emt 0:00:38]} 21. Rg4 {[%emt 0:01:30]} f5 {[%emt 0:00:52]} 22. Rxg5+ {[%emt 0:00:57]} hxg5 {[%emt 0:00:20]} 23. h6 {[%emt 0:02:34]} g4 {[%emt 0:00:19]} 24. Qf4 {[%emt 0:00:10]} Rf7 {[%emt 0:00:55]} 25. Qg5+ {[%emt 0:03:52]} Kh7 {[%emt 0:01:27]} 26. Ke2 {[%emt 0:02:49]} Rg8 {[%emt 0:00:38]} 27. Qf4 {[%emt 0:00:45]} Ne7 {[%emt 0:00:43]} 28. Rh1 {[%emt 0:00:54]} Ng6 {[%emt 0:00:23]} 29. Qf1 {[%emt 0:00:50]} Ne7 {[%emt 0:01:16]} 30. Qc1 {[%emt 0:01:24]} Rg6 {[%emt 0:00:43]} 31. c4 {[%emt 0:00:32]} Rxh6 {[%emt 0:00:23]} 32. Rxh6+ {[%emt 0:00:31]} Kxh6 {[%emt 0:00:11]} 33. Qc2 {[%emt 0:00:27]} dxc4 {[%emt 0:00:36]} 34. Qxc4 {[%emt 0:00:07]} 0-1

[Event "Slovakian-ch Youth 2022"]
[Site "Lubovna"]
[Date "2022.05.24"]
[Round "5.16"]
[White "Sandor, Samuel"]
[Black "Rak, Martin"]
[Result "1/2-1/2"]
[ECO "D00"]
[WhiteElo "2054"]
[BlackElo "1849"]
[Annotator "TA"]
[PlyCount "43"]
[EventDate "2022.05.22"]
[EventCountry "SVK"]
[SourceTitle "playchess.com"]
[Source "ChessBase"]
[SourceQuality "1"]
[TimeControl "40/5400+30:1800+30"]

{[%evp 9,43,0,10,-2,-3,-7,0,-6,0,0,-5,-35,-34,-37,-37,-44,-37,-62,-25,-30,-32,-47,-44,-71,-58,-71,-59,-56,-57,-55,-59,-61,-41,-59,-40,-48]} 1. d4 {[%emt 0:00:08]} Nf6 {[%emt 0:00:05]} 2. Bf4 {[%emt 0:00:04]} e6 {[%emt 0:00:16]} 3. e3 {[%emt 0:00:09]} c5 {[%emt 0:00:29]} 4. c3 {[%emt 0:00:09]} d5 {[%emt 0:00:13]} 5. Nd2 {[%emt 0:00:10]} Bd6 {[%emt 0:00:18]} 6. Bg3 {[%emt 0:00:09] D00: 1 d4 d5: Unusual lines.} O-O {[%emt 0:00:08]} 7. Bd3 {[%emt 0:01:05]} Qc7 $1 {[%emt 0:00:56][%mdl 4] outshines the older 7...Nc6.} 8. Rc1 {[%emt 0:03:40] [#] The position is equal.} c4 $146 {[%emt 0:04:25]} ({Predecessor:} 8... e5 9. dxe5 Bxe5 10. Ngf3 Bxg3 11. hxg3 h6 12. c4 d4 13. exd4 cxd4 14. Nxd4 Qe5+ {0-1 (50) Ostrovskiy,A (2425)-Osmak,I (2438) Chess.com INT 2020}) 9. Bc2 {[%emt 0:02:11]} Nbd7 {[%emt 0:02:46]} 10. f4 {[%emt 0:02:40]} b5 {[%emt 0:05:22]} 11. Ngf3 {[%emt 0:05:17]} Bb7 {[%emt 0:07:09]} 12. O-O {[%emt 0:11:44]} Ne4 {[%emt 0:04:32]} 13. Ne5 {[%emt 0:08:54]} f5 {[%emt 0:02:13]} (13... Nb6 {looks sharper.} 14. Qh5 f6 15. Nxe4 dxe4 16. Ng4 Bc6) 14. Nxe4 {[%emt 0:04:16]} dxe4 {[%emt 0:01:56]} 15. Nxd7 {[%emt 0:11:07]} Qxd7 {[%emt 0:01:20]} 16. b3 {[%emt 0:00:11]} Bd5 {[%emt 0:07:52]} 17. Be1 {[%emt 0:01:45]} Rfb8 {[%emt 0:06:31]} 18. Rf2 {[%emt 0:02:57] Black is slightly better.} a5 {[%emt 0:01:50]} 19. Rb1 {[%emt 0:04:02]} Rb7 {[%emt 0:07:38]} 20. g4 {[%emt 0:05:22]} Kh8 {[%emt 0:02:10]} 21. Rg2 {[%emt 0:00:35]} Rab8 {[%emt 0:05:38]} 22. h3 {[%emt 0:03:00] Weighted Error Value: White=0.08 (flawless) /Black=0.08 (flawless)} 1/2-1/2

[Event "Slovakian-ch Youth 2022"]
[Site "Lubovna"]
[Date "2022.05.24"]
[Round "5.16"]
[White "Horvath, Simon"]
[Black "Kakus, Oliver"]
[Result "1-0"]
[ECO "B02"]
[WhiteElo "1343"]
[BlackElo "1000"]
[Annotator "NA RC COMBH"]
[PlyCount "59"]
[EventDate "2022.05.22"]
[EventCountry "SVK"]
[SourceTitle "playchess.com"]
[Source "ChessBase"]
[SourceQuality "1"]
[TimeControl "40/5400+30:1800+30"]

1. e4 {[%emt 0:00:03]} Nf6 {[%emt 0:00:15]} 2. Nc3 {[%emt 0:00:15]} Nc6 {[%emt 0:00:32]} 3. Nf3 {[%emt 0:00:19]} d5 {[%emt 0:00:10]} 4. exd5 {[%emt 0:00:50]} Nb4 {[%emt 0:01:05]} 5. Bc4 {[%emt 0:05:18]} Bf5 {[%emt 0:00:41]} 6. d3 {[%emt 0:02:33]} Qd6 {[%emt 0:03:31]} 7. Nb5 {[%emt 0:09:08]} Qb6 {[%emt 0:00:41]} 8. Be3 {[%emt 0:04:55]} Qa5 {[%emt 0:04:12]} 9. Bd2 {[%emt 0:06:49]} O-O-O {[%emt 0:03:25]} 10. a3 {[%emt 0:02:37]} Nfxd5 {[%emt 0:01:38]} 11. axb4 {[%emt 0:01:59]} Qb6 {[%emt 0:00:50]} 12. O-O {[%emt 0:06:05]} a6 {[%emt 0:01:42]} 13. Nc3 {[%emt 0:03:16]} Nxb4 {[%emt 0:01:01]} 14. Na4 {[%emt 0:04:42]} Qd6 {[%emt 0:01:09]} 15. Bxb4 {[%emt 0:00:43]} Qxb4 {[%emt 0:03:38]} 16. Qd2 {[%emt 0:01:44]} Qd6 {[%emt 0:00:46]} 17. Nc3 {[%emt 0:05:44]} Qg6 {[%emt 0:01:27]} 18. Nh4 {[%emt 0:03:13]} Qf6 {[%emt 0:00:56]} 19. Nxf5 {[%emt 0:00:42]} Qxf5 {[%emt 0:00:31]} 20. h3 {[%emt 0:04:48]} Rd6 {[%emt 0:00:37]} 21. Rae1 {[%emt 0:02:47]} e6 {[%emt 0:00:39]} 22. Re2 {[%emt 0:01:25]} Kd7 {[%emt 0:00:41]} 23. Rfe1 {[%emt 0:01:01]} Rb6 {[%emt 0:00:45]} 24. Na4 {[%emt 0:00:43]} Bb4 {[%emt 0:00:26]} 25. Nxb6+ {[%emt 0:00:37]} cxb6 {[%emt 0:00:35]} 26. Qxb4 {[%emt 0:00:39]} a5 {[%emt 0:00:45]} 27. Qxb6 {[%emt 0:02:03]} Rb8 {[%emt 0:00:36]} 28. Qb5+ {[%emt 0:00:39]} Ke7 {[%emt 0:00:44]} 29. Qxf5 {[%emt 0:00:13]} g6 {[%emt 0:00:27]} 30. Rxe6+ 1-0